bitfinex/quotes_BTCUSD_20250718
["timestamp","ask_amount","ask_price","bid_price","bid_amount"]
[1752863786041,0.30793797,117690.0,117680.0,0.04001]
[1752863787529,0.16993797,117690.0,117680.0,0.04001]
[1752863787756,0.30785797,117690.0,117680.0,0.04001]
[1752863791220,0.31635486,117690.0,117680.0,0.04001]
[1752863791437,0.17843486,117690.0,117680.0,0.04001]
[1752863791841,0.17843486,117690.0,117680.0,0.20996241]
[1752863792057,0.17843486,117690.0,117680.0,0.30344189]
[1752863792482,0.17843486,117690.0,117680.0,0.04001]
[1752863793340,0.17843486,117690.0,117680.0,0.20996241]
[1752863793561,0.17843486,117690.0,117680.0,0.21846003]
[1752863793775,0.17843486,117690.0,117680.0,0.04001]
[1752863793990,0.17843486,117690.0,117680.0,0.21846003]
[1752863794203,0.17843486,117690.0,117680.0,0.22695757]
[1752863794425,0.17843486,117690.0,117680.0,0.23545504]
[1752863794643,0.17843486,117690.0,117680.0,0.26588202]
[1752863794862,0.01699306,117690.0,117680.0,0.70439719]
[1752863795121,0.04248294,117690.0,117680.0,0.70439733]
[1752863795345,0.03398605,117690.0,117680.0,0.72069682]
[1752863795564,0.03398605,117690.0,117680.0,0.73619682]
[1752863796272,0.20392467,117690.0,117680.0,0.71920246]
[1752863796486,0.20392467,117690.0,117680.0,0.242852]
[1752863796719,0.20392467,117690.0,117680.0,0.03891]
[1752863796942,0.19542821,117690.0,117680.0,0.20886241]
[1752863797158,0.19542821,117690.0,117680.0,0.22585728]
[1752863797828,0.19542821,117690.0,117680.0,0.23435482]
[1752863798041,0.19542821,117690.0,117680.0,0.242852]
[1752863798503,0.02548967,117690.0,117680.0,0.33710852]
[1752863798721,0.01699299,117690.0,117680.0,0.33710852]
[1752863798983,0.31620959,117700.0,117690.0,0.20973472]
[1752863799212,0.31620959,117700.0,117690.0,0.21169472]
[1752863799404,0.31620959,117700.0,117690.0,0.21463472]
[1752863799655,0.32470555,117700.0,117690.0,0.2231314]
[1752863800102,0.32470555,117700.0,117690.0,0.21463472]
[1752863800559,0.32470555,117700.0,117690.0,0.21463486]
[1752863800766,0.31620959,117700.0,117690.0,0.21463486]
[1752863801505,0.30771342,117700.0,117690.0,0.0362]
[1752863801944,0.30771342,117700.0,117690.0,0.21463486]
[1752863802403,0.30771342,117700.0,117690.0,0.0362]
[1752863802628,0.30771342,117700.0,117690.0,0.21463479]
[1752863803512,0.30771342,117700.0,117690.0,0.25564264]
[1752863803767,0.30771342,117700.0,117690.0,0.21463479]
[1752863804205,0.30771342,117700.0,117690.0,0.20613797]
[1752863804861,0.30771342,117700.0,117690.0,0.21463486]
[1752863805077,0.30771342,117700.0,117690.0,0.0362]
[1752863806036,0.31620959,117700.0,117690.0,0.23864896]
[1752863806176,0.32470555,117700.0,117690.0,0.22313154]
[1752863806397,0.32470555,117700.0,117690.0,0.23162822]
[1752863806608,0.32470555,117700.0,117690.0,0.21463479]
[1752863806832,0.32470555,117700.0,117690.0,0.22313147]
[1752863807466,0.32470555,117700.0,117690.0,0.23162807]
[1752863808092,0.32470555,117700.0,117690.0,0.22313147]
[1752863808520,0.31620959,117700.0,117690.0,0.21463479]
[1752863808951,0.30771342,117700.0,117690.0,0.20613797]
[1752863809650,0.30771342,117700.0,117690.0,0.21463486]
[1752863809867,0.30735342,117700.0,117690.0,0.22313168]
[1752863810757,0.30735342,117700.0,117690.0,0.0362]
[1752863811237,0.30735342,117700.0,117690.0,0.20613797]
[1752863811433,0.30735342,117700.0,117690.0,0.21463486]
[1752863811782,0.30735342,117700.0,117690.0,0.22313168]
[1752863812436,0.16995342,117700.0,117690.0,0.31738805]
[1752863812666,0.17844959,117700.0,117690.0,0.33438133]
[1752863812901,0.31576959,117700.0,117690.0,0.33438133]
[1752863813592,0.31576959,117700.0,117690.0,0.04469689]
[1752863814045,0.31576959,117700.0,117690.0,0.03739371]
[1752863814304,0.17844959,117700.0,117690.0,0.21582843]
[1752863814545,0.31576959,117700.0,117690.0,0.21582843]
[1752863815706,0.31576959,117700.0,117690.0,0.22432503]
[1752863816139,0.31576959,117700.0,117690.0,0.20733168]
[1752863816577,0.31576959,117700.0,117690.0,0.21582843]
[1752863817017,0.31576959,117700.0,117690.0,0.22432511]
[1752863817459,0.17844959,117700.0,117690.0,0.22432511]
[1752863817674,0.31568959,117700.0,117690.0,0.23282171]
[1752863817895,0.32418555,117700.0,117690.0,0.23282171]
[1752863818713,0.18694555,117700.0,117690.0,0.23282171]
[1752863818933,0.32422555,117700.0,117690.0,0.23282171]
[1752863819182,0.32422555,117700.0,117690.0,0.21582843]
[1752863819712,0.32422555,117700.0,117690.0,0.22432511]
[1752863819977,0.32422555,117700.0,117690.0,0.21582843]
[1752863820244,0.31572959,117700.0,117690.0,0.21582843]
[1752863820713,0.31572959,117700.0,117690.0,0.35310843]
[1752863820934,0.30723342,117700.0,117690.0,0.33611486]
[1752863821833,0.30723342,117700.0,117690.0,0.34461161]
[1752863822079,0.30723342,117700.0,117690.0,0.33611486]
[1752863822730,0.16995342,117700.0,117690.0,0.33611486]
[1752863822942,0.30711342,117700.0,117690.0,0.16617689]
[1752863823344,0.30711342,117700.0,117690.0,0.33611486]
[1752863825468,0.30711342,117700.0,117690.0,0.34461168]
[1752863826103,0.0005,117710.0,117700.0,0.16992353]
[1752863826313,0.01713981,117710.0,117700.0,0.72611492]
[1752863826529,0.00864458,117710.0,117700.0,0.72611492]
[1752863826736,0.00864451,117710.0,117700.0,0.72611492]
[1752863827029,0.00014971,117710.0,117700.0,0.74065577]
[1752863827288,0.00014971,117710.0,117700.0,1.06919246]
[1752863827518,0.00014971,117710.0,117700.0,1.07019246]
[1752863827965,0.00014971,117710.0,117700.0,0.98443284]
[1752863828175,0.00864458,117710.0,117700.0,0.98443284]
[1752863828385,0.00864451,117710.0,117700.0,0.98443284]
[1752863828626,0.00864451,117710.0,117700.0,0.98343284]
[1752863829061,0.00014971,117710.0,117700.0,0.74390556]
[1752863829276,0.00014971,117710.0,117700.0,0.74690556]
[1752863829664,0.00864451,117710.0,117700.0,0.74690556]
[1752863829959,0.00014971,117710.0,117700.0,0.74690556]
[1752863830187,0.00014971,117710.0,117700.0,0.83266518]
[1752863830603,0.00864451,117710.0,117700.0,0.83266518]
[1752863830808,0.00014971,117710.0,117700.0,0.83266518]
[1752863835771,0.00014971,117710.0,117700.0,1.25817546]
[1752863836165,0.00014971,117710.0,117700.0,1.17241584]
[1752863839470,0.00014971,117710.0,117700.0,1.30865584]
[1752863843564,0.00014971,117710.0,117700.0,0.82355834]
[1752863843774,0.00014971,117710.0,117700.0,1.30865584]
[1752863844608,0.00014971,117710.0,117700.0,1.79375334]
[1752863844821,0.00014971,117710.0,117700.0,1.87951296]
[1752863845471,0.00014971,117710.0,117700.0,1.87651296]
[1752863845686,0.00014971,117710.0,117700.0,1.87351296]
[1752863845902,0.00114971,117710.0,117700.0,1.88551296]
[1752863848223,0.00114971,117710.0,117700.0,1.91101196]
[1752863848459,1e-08,117710.0,117700.0,1.91101196]
[1752863852018,1e-08,117710.0,117700.0,1.96101196]
[1752863855221,1e-08,117710.0,117700.0,2.01101196]
[1752863856381,0.0322,117770.0,117760.0,0.69494996]
[1752863856584,0.03432996,117770.0,117760.0,1.40184708]
[1752863856817,0.01812996,117770.0,117760.0,1.48938736]
[1752863857027,0.00212996,117770.0,117760.0,1.49253736]
[1752863858046,0.00212996,117770.0,117760.0,1.00743986]
[1752863858248,0.00014996,117770.0,117760.0,1.00743986]
[1752863858454,0.03302996,117770.0,117760.0,0.86621986]
[1752863858661,0.03302996,117770.0,117760.0,1.01064668]
[1752863858899,0.05201105,117770.0,117760.0,1.01064668]
[1752863859106,0.04352043,117770.0,117760.0,1.01064668]
[1752863859284,0.04352043,117770.0,117760.0,0.92488706]
[1752863859515,0.06050174,117770.0,117760.0,0.92488706]
[1752863859935,0.23177513,117770.0,117760.0,0.67181311]
[1752863860130,0.22328437,117770.0,117760.0,0.14442682]
[1752863860374,0.21002872,117760.0,117750.0,0.6804783]
[1752863860501,0.22050035,117760.0,117750.0,0.82501058]
[1752863860706,0.23044183,117760.0,117750.0,0.72049612]
[1752863860908,0.17835858,117740.0,117730.0,0.65494311]
[1752863861118,0.05915849,117740.0,117730.0,0.9020144]
[1752863861532,0.23047429,117740.0,117730.0,0.90201491]
[1752863861739,0.23047429,117740.0,117730.0,0.91900198]
[1752863861740,0.06060849,117740.0,117730.0,0.91900198]
[1752863861957,0.04217278,117740.0,117730.0,0.91900198]
[1752863862165,0.04217278,117740.0,117730.0,0.94297725]
[1752863862358,0.04217278,117740.0,117730.0,0.94397725]
[1752863862593,0.05266549,117740.0,117730.0,0.94397725]
[1752863862809,0.04217264,117740.0,117730.0,0.94397725]
[1752863863146,0.03668,117740.0,117730.0,0.94397725]
[1752863863311,0.03668,117740.0,117730.0,0.93769283]
[1752863863718,0.03668,117740.0,117730.0,0.96236393]
[1752863864259,0.04517271,117740.0,117730.0,0.96236393]
[1752863864464,0.03668,117740.0,117730.0,0.96236393]
[1752863864792,0.04517271,117740.0,117730.0,1.05676775]
[1752863865019,0.04517264,117740.0,117730.0,1.05676775]
[1752863865653,0.03668,117740.0,117730.0,1.05676775]
[1752863865868,0.04517264,117740.0,117730.0,1.05676775]
[1752863866177,0.03668,117740.0,117730.0,1.05676775]
[1752863866486,0.02907264,117740.0,117730.0,1.05676775]
[1752863866908,0.02058,117740.0,117730.0,1.05676775]
[1752863867099,0.00498,117740.0,117730.0,1.05879775]
[1752863870382,0.003,117740.0,117730.0,1.05879775]
[1752863870594,0.003,117740.0,117730.0,1.07489775]
[1752863870745,0.003,117740.0,117730.0,1.09059775]
[1752863870927,0.003,117740.0,117730.0,1.43059775]
[1752863871329,0.003,117740.0,117730.0,1.43159775]
[1752863872021,0.0314,117760.0,117750.0,0.19532821]
[1752863872221,0.03338,117760.0,117750.0,0.81646571]
[1752863872976,0.04187119,117760.0,117750.0,0.816466]
[1752863873224,0.06030408,117760.0,117750.0,0.80797372]
[1752863873442,0.05281253,117760.0,117750.0,0.816466]
[1752863873642,0.06130408,117760.0,117750.0,0.816466]
[1752863873813,0.05281253,117760.0,117750.0,0.8249582]
[1752863874036,0.05281253,117760.0,117750.0,0.8334499]
[1752863874198,0.04287119,117760.0,117750.0,0.8334499]
[1752863874404,0.05136246,117760.0,117750.0,0.8334499]
[1752863875027,0.03438,117760.0,117750.0,0.8334499]
[1752863875249,0.03438,117760.0,117750.0,0.91920952]
[1752863875459,0.01918,117760.0,117750.0,0.92438952]
[1752863875869,0.001,117760.0,117750.0,0.93893037]
[1752863876456,0.001,117760.0,117750.0,1.02444065]
[1752863876848,0.001,117760.0,117750.0,1.03944065]
[1752863877068,0.001,117760.0,117750.0,1.05594065]
[1752863878267,0.00066196,117760.0,117750.0,1.05694065]
[1752863879442,0.00014996,117770.0,117760.0,0.20985246]
[1752863879791,0.03452996,117770.0,117760.0,0.83612996]
[1752863880017,0.03452996,117770.0,117760.0,0.91648103]
[1752863880648,0.01872996,117770.0,117760.0,0.91648103]
[1752863880865,0.01972996,117770.0,117760.0,0.91648103]
[1752863884241,0.00312996,117770.0,117760.0,0.91648103]
[1752863885065,0.00312996,117770.0,117760.0,0.83612996]
[1752863887021,0.01862996,117770.0,117760.0,0.83612996]
[1752863889453,0.03362996,117770.0,117760.0,0.16983695]
[1752863889669,0.23037492,117770.0,117760.0,0.32278027]
[1752863890162,0.23037492,117770.0,117760.0,0.32278042]
[1752863890398,0.23037492,117770.0,117760.0,0.33127197]
[1752863890795,0.22892492,117770.0,117760.0,0.33127197]
[1752863891030,0.22892492,117770.0,117760.0,0.33976345]
[1752863891256,0.2204343,117770.0,117760.0,0.31428872]
[1752863891470,0.2204343,117770.0,117750.0,0.75203115]
[1752863891471,0.22541197,117760.0,117750.0,0.32884465]
[1752863891693,0.22738197,117760.0,117750.0,0.33733693]
[1752863891925,0.19534507,117740.0,117730.0,0.20701499]
[1752863892153,0.23600836,117740.0,117730.0,0.30584023]
[1752863892387,0.2190223,117740.0,117730.0,0.13596]
[1752863892606,0.20008023,117730.0,117720.0,0.89282857]
[1752863892860,0.21054409,117730.0,117720.0,0.40773107]
[1752863893077,0.04915765,117730.0,117720.0,0.41622544]
[1752863893289,0.05765087,117730.0,117720.0,0.91847293]
[1752863893489,0.06614473,117730.0,117720.0,0.91847293]
[1752863893782,0.07463874,117730.0,117720.0,0.91847293]
[1752863893996,0.23602554,117730.0,117720.0,0.42488121]
[1752863894207,0.23602554,117730.0,117720.0,0.91847301]
[1752863895240,0.0576513,117730.0,117720.0,0.91847301]
[1752863895456,0.0576513,117730.0,117720.0,0.92696723]
[1752863895865,0.05765079,117730.0,117720.0,0.93004723]
[1752863896087,0.05765072,117730.0,117720.0,0.93004723]
[1752863896312,0.00849336,117730.0,117720.0,1.01783685]
[1752863896532,0.02548044,117730.0,117720.0,1.01783685]
[1752863896955,0.01698679,117730.0,117720.0,1.01783685]
[1752863897178,0.01698679,117730.0,117720.0,0.93207723]
[1752863897428,0.04818578,117740.0,117730.0,0.1953616]
[1752863897647,0.04818578,117740.0,117730.0,0.82998195]
[1752863897648,0.00849271,117740.0,117730.0,0.82998195]
[1752863897895,0.02547856,117740.0,117730.0,0.82998195]
[1752863898472,0.03397155,117740.0,117730.0,0.82998195]
[1752863898684,0.03397155,117740.0,117730.0,0.82148859]
[1752863898890,0.23800793,117740.0,117730.0,0.81299509]
[1752863899088,0.23800793,117740.0,117730.0,0.80788509]
[1752863899287,0.05964884,117740.0,117730.0,0.81637859]
[1752863899501,0.05964884,117740.0,117730.0,0.81945859]
[1752863899756,0.01046264,117740.0,117730.0,0.82148859]
[1752863899920,0.01898542,117740.0,117730.0,0.82148859]
[1752863900075,0.03597134,117740.0,117730.0,0.82148859]
[1752863900694,0.02747827,117740.0,117730.0,0.82148859]
[1752863900897,0.03697127,117740.0,117730.0,0.82148859]
[1752863901647,0.04546434,117740.0,117730.0,0.82148859]
[1752863902254,0.02847827,117740.0,117730.0,0.90724821]
[1752863902490,0.03697127,117740.0,117730.0,0.90724821]
[1752863902694,0.03697127,117740.0,117730.0,0.82148859]
[1752863903103,0.04546441,117740.0,117730.0,0.82148859]
[1752863903318,0.24960086,117740.0,117730.0,0.82148859]
[1752863903949,0.07124177,117740.0,117730.0,0.82148859]
[1752863904162,0.06274863,117740.0,117730.0,0.82148859]
[1752863904377,0.07124184,117740.0,117730.0,0.80788509]
[1752863905026,0.07124184,117740.0,117730.0,0.81637859]
[1752863905523,0.06274863,117740.0,117730.0,0.81637859]
[1752863905738,0.07973498,117740.0,117730.0,0.81945859]
[1752863905983,0.07124177,117740.0,117730.0,0.81945859]
[1752863906636,0.0712417,117740.0,117730.0,0.81945859]
[1752863907062,0.06274863,117740.0,117730.0,0.81945859]
[1752863907263,0.02195563,117740.0,117730.0,0.82148859]
[1752863907447,0.03894169,117740.0,117730.0,0.82148859]
[1752863907653,0.05414169,117740.0,117730.0,0.82148859]
[1752863907861,0.02866278,117740.0,117730.0,0.82148859]
[1752863908119,0.00497,117740.0,117730.0,0.82148859]
[1752863908329,0.01149271,117740.0,117730.0,0.86330215]
[1752863908764,0.01998556,117740.0,117730.0,0.82148859]
[1752863908969,0.01149271,117740.0,117730.0,0.82148859]
[1752863909147,0.01998556,117740.0,117730.0,0.82148859]
[1752863909358,0.01998556,117740.0,117730.0,0.33639109]
[1752863909562,0.02847848,117740.0,117730.0,0.82148859]
[1752863909963,0.03697148,117740.0,117730.0,0.82148859]
[1752863910207,0.04546462,117740.0,117730.0,0.82148859]
[1752863910641,0.03697148,117740.0,117730.0,0.82148859]
[1752863910847,0.02847848,117740.0,117730.0,0.82148859]
[1752863911233,0.01998556,117740.0,117730.0,0.82148859]
[1752863911440,0.003,117740.0,117730.0,0.92354821]
[1752863911655,0.003,117740.0,117730.0,0.95468906]
[1752863911887,0.01149271,117740.0,117730.0,0.85232944]
[1752863912318,0.01149264,117740.0,117730.0,0.85232944]
[1752863913251,0.003,117740.0,117730.0,0.85232944]
[1752863913469,0.01998542,117740.0,117730.0,0.85232944]
[1752863913661,0.23172464,117740.0,117730.0,0.81637939]
[1752863913884,0.22323186,117740.0,117730.0,0.79089773]
[1752863914103,0.21473894,117740.0,117730.0,0.32278802]
[1752863914923,0.21473894,117740.0,117730.0,0.33977546]
[1752863915349,0.21473894,117740.0,117730.0,0.33128181]
[1752863915550,0.21473894,117740.0,117730.0,0.33977553]
[1752863915926,0.21473894,117740.0,117730.0,0.34826918]
[1752863916129,0.21473894,117740.0,117730.0,0.35127918]
[1752863916345,0.21473894,117740.0,117730.0,0.34278553]
[1752863916543,0.21473894,117740.0,117730.0,0.33429181]
[1752863916763,0.21473894,117740.0,117730.0,0.13893]
[1752863916960,0.04778765,117730.0,117720.0,0.92130797]
[1752863917203,0.06675523,117730.0,117720.0,0.42771625]
[1752863917413,0.04326094,117730.0,117720.0,0.92130797]
[1752863917619,0.0359548,117730.0,117720.0,0.92331797]
[1752863917849,0.0359548,117730.0,117720.0,0.41273758]
[1752863917850,0.21432904,117730.0,117720.0,0.41273758]
[1752863918033,0.23713554,117730.0,117720.0,0.40771758]
[1752863918262,0.23713554,117730.0,117720.0,0.41621209]
[1752863918469,0.23713554,117730.0,117720.0,0.42470653]
[1752863918661,0.05275531,117730.0,117720.0,0.92331825]
[1752863919075,0.01996744,117730.0,117720.0,0.92331825]
[1752863919231,0.0264813,117730.0,117720.0,0.43822075]
[1752863919439,0.03497523,117730.0,117720.0,0.92331825]
[1752863920843,0.0264813,117730.0,117720.0,0.92331825]
[1752863921045,0.01798708,117730.0,117720.0,0.92331825]
[1752863921340,0.02648094,117730.0,117720.0,0.92331825]
[1752863921894,0.01798708,117730.0,117720.0,0.92331825]
[1752863923814,0.02648094,117730.0,117720.0,0.92331825]
[1752863924016,0.20683518,117730.0,117720.0,0.77044959]
[1752863924246,0.23054175,117730.0,117720.0,0.80441311]
[1752863924417,0.2220481,117730.0,117720.0,0.62949845]
[1752863924834,0.2220481,117730.0,117720.0,0.8163825]
[1752863925032,0.2220481,117730.0,117720.0,0.82487708]
[1752863925263,0.2220481,117730.0,117720.0,0.83337152]
[1752863925467,0.2220481,117730.0,117720.0,0.83337109]
[1752863925703,0.2220481,117730.0,117720.0,0.83638109]
[1752863925882,0.05216751,117730.0,117720.0,0.84487531]
[1752863926052,0.06066094,117730.0,117720.0,0.84487531]
[1752863926255,0.06915487,117730.0,117720.0,0.84688531]
[1752863926488,0.24752911,117730.0,117720.0,0.84688531]
[1752863927022,0.06915487,117730.0,117720.0,0.84688531]
[1752863927223,0.00949343,117730.0,117720.0,0.84688531]
[1752863927436,0.017987,117730.0,117720.0,0.88325857]
[1752863928052,0.02648079,117730.0,117720.0,0.84688531]
[1752863928450,0.02648072,117730.0,117720.0,0.84688531]
[1752863929039,0.03497451,117730.0,117720.0,0.84688531]
[1752863929203,0.04346837,117730.0,117720.0,0.84688531]
[1752863929413,0.03497451,117730.0,117720.0,0.84688531]
[1752863929631,0.04346837,117730.0,117720.0,0.84688531]
[1752863930027,0.02648072,117730.0,117720.0,0.84688531]
[1752863930292,0.001,117730.0,117720.0,1.46288328]
[1752863930610,0.00949336,117730.0,117720.0,1.37712366]
[1752863930860,0.001,117730.0,117720.0,0.89202616]
[1752863933150,0.00949336,117730.0,117720.0,0.89202616]
[1752863934453,0.00949336,117730.0,117720.0,0.40692866]
[1752863934657,0.00949336,117730.0,117720.0,0.89202616]
[1752863935150,0.001,117730.0,117720.0,0.89202616]
[1752863936464,0.00949343,117730.0,117720.0,0.89202616]
[1752863936814,0.01798693,117730.0,117720.0,0.89202616]
[1752863937033,0.02648058,117730.0,117720.0,0.87662616]
[1752863937497,0.02648058,117730.0,117720.0,0.39152866]
[1752863937716,0.2068351,117730.0,117720.0,0.69405686]
[1752863937944,0.2068351,117730.0,117720.0,0.31421561]
[1752863937945,0.2305416,117730.0,117720.0,0.31421561]
[1752863938150,0.2305416,117730.0,117720.0,0.81630213]
[1752863938418,0.2305416,117730.0,117720.0,0.81931213]
[1752863938646,0.00849458,117720.0,117710.0,0.22953326]
[1752863938882,0.00849458,117720.0,117700.0,0.1954109]
[1752863938883,0.00849545,117710.0,117700.0,0.1954109]
[1752863939093,0.03596079,117710.0,117700.0,0.84428556]
[1752863939306,0.2143649,117710.0,117700.0,0.3191597]
[1752863939531,0.22897508,117710.0,117700.0,0.8127533]
[1752863939756,0.22897508,117710.0,117700.0,0.82974514]
[1752863939962,0.22047985,117710.0,117700.0,0.8127533]
[1752863940185,0.22147985,117710.0,117700.0,0.8127533]
[1752863940424,0.0354704,117710.0,117700.0,0.82974485]
[1752863940644,0.02846512,117710.0,117700.0,0.82974485]
[1752863940859,0.02648512,117710.0,117700.0,0.82974485]
[1752863941081,0.01798996,117710.0,117700.0,0.82974485]
[1752863941298,0.01798981,117710.0,117700.0,0.82974485]
[1752863941521,0.0264849,117710.0,117700.0,0.82974485]
[1752863941751,0.00949487,117710.0,117700.0,0.82974485]
[1752863941960,0.0094948,117710.0,117700.0,0.93190447]
[1752863942192,0.01798974,117710.0,117700.0,0.93190447]
[1752863942406,0.01798974,117710.0,117700.0,0.84614485]
[1752863942632,0.001,117710.0,117700.0,0.84614485]
[1752863942862,0.001,117710.0,117700.0,0.96149598]
[1752863943288,0.0094948,117710.0,117700.0,0.8606857]
[1752863943511,0.0094948,117710.0,117700.0,0.8759857]
[1752863943733,0.001,117710.0,117700.0,0.8759857]
[1752863943944,0.04247228,117720.0,117710.0,0.18689949]
[1752863944166,0.04247228,117720.0,117710.0,0.82123201]
[1752863944802,0.20387279,117720.0,117710.0,0.81273699]
[1752863945201,0.20387279,117720.0,117710.0,0.82123201]
[1752863945566,0.20387279,117720.0,117710.0,0.81273699]
[1752863945769,0.20387279,117720.0,117710.0,0.8042419]
[1752863946002,0.19537849,117720.0,117710.0,0.82123222]
[1752863946212,0.02548383,117720.0,117710.0,0.82972724]
[1752863946401,0.01698866,117720.0,117710.0,0.83822218]
[1752863946604,0.02548324,117720.0,117710.0,0.83822218]
[1752863946803,0.0339779,117720.0,117710.0,0.83822218]
[1752863947104,0.04247263,117720.0,117710.0,0.82972724]
[1752863947776,0.07495263,117720.0,117710.0,0.82972724]
[1752863948133,0.22974729,117720.0,117710.0,0.82972724]
[1752863948553,0.22125307,117720.0,117710.0,0.82123222]
[1752863949474,0.22125307,117720.0,117710.0,0.81070713]
[1752863949730,0.22006405,117720.0,117710.0,0.79922204]
[1752863949932,0.22006405,117720.0,117710.0,0.80771742]
[1752863950235,0.22006405,117720.0,117710.0,0.6208175]
[1752863950455,0.21156939,117720.0,117710.0,0.6208175]
[1752863951106,0.21156939,117720.0,117710.0,0.13572]
[1752863951994,0.01699155,117700.0,117690.0,0.70932436]
[1752863952214,0.02548758,117700.0,117690.0,0.84718407]
[1752863952401,0.02548751,117700.0,117690.0,0.84718407]
[1752863952959,0.21240324,117700.0,117690.0,0.84718407]
[1752863953593,0.03398354,117700.0,117690.0,0.84718407]
[1752863955679,0.03398354,117700.0,117690.0,0.85568122]
[1752863955876,0.00849567,117700.0,117690.0,0.85568122]
[1752863956203,0.01699155,117700.0,117690.0,0.95794084]
[1752863956747,0.01699155,117700.0,117690.0,0.87218122]
[1752863957132,0.02548758,117700.0,117690.0,0.87218122]
[1752863957856,0.00849567,117700.0,117690.0,0.87218122]
[1752863958016,0.01699148,117700.0,117690.0,0.87218122]
[1752863959605,0.02548744,117700.0,117690.0,0.87218122]
[1752863959955,0.01699148,117700.0,117690.0,0.87218122]
[1752863960273,0.20920432,117710.0,117700.0,0.18691537]
[1752863960450,0.22817479,117710.0,117700.0,0.80769287]
[1752863960652,0.22817479,117710.0,117700.0,0.81917861]
[1752863961041,0.22817479,117710.0,117700.0,0.31708956]
[1752863961288,0.22817479,117710.0,117700.0,0.81068294]
[1752863961561,0.22817479,117710.0,117700.0,0.81271294]
[1752863961861,0.22917479,117710.0,117700.0,0.82120875]
[1752863962184,0.05177025,117710.0,117700.0,0.82970442]
[1752863962392,0.22307003,117710.0,117700.0,0.82970442]
[1752863962635,0.05316094,117710.0,117700.0,0.82970442]
[1752863963265,0.23156548,117710.0,117700.0,0.82970442]
[1752863963820,0.06165639,117710.0,117700.0,0.82970442]
[1752863964020,0.05316094,117710.0,117700.0,0.82970442]
[1752863964443,0.23156548,117710.0,117700.0,0.82970449]
[1752863965651,0.22197992,117710.0,117700.0,0.79568103]
[1752863965878,0.21348454,117710.0,117700.0,0.79365103]
[1752863966097,0.21348454,117710.0,117700.0,0.8021472]
[1752863966275,0.21348454,117710.0,117700.0,0.8106433]
[1752863966923,0.18691566,117700.0,117690.0,0.03429263]
[1752863967096,0.19541147,117700.0,117690.0,0.83848463]
[1752863967525,0.19541147,117700.0,117690.0,0.82998803]
[1752863967737,0.22079566,117700.0,117690.0,0.00014971]
[1752863968031,1.3082955,117700.0,117690.0,0.00014971]
[1752863968176,1.3087955,117700.0,117690.0,0.00014971]
[1752863971837,1.33719938,117700.0,117690.0,0.00114971]
[1752863972039,1.38819938,117700.0,117690.0,0.00014971]
[1752863972251,1.39119938,117700.0,117690.0,0.00014971]
[1752863972477,1.39019938,117700.0,117690.0,0.00014971]
[1752863972845,1.39419938,117700.0,117690.0,0.00014971]
[1752863973258,1.34419938,117700.0,117690.0,0.00014971]
[1752863973465,0.90910188,117700.0,117690.0,0.00014971]
[1752863973675,0.79085594,117700.0,117690.0,0.00014971]
[1752863973835,1.27595344,117700.0,117690.0,0.00014971]
[1752863974038,1.27795344,117700.0,117690.0,0.00014971]
[1752863974246,0.93795344,117700.0,117690.0,0.00014971]
[1752863974458,1.27795344,117700.0,117690.0,0.00014971]
[1752863974895,1.32795344,117700.0,117690.0,0.00014971]
[1752863975105,1.27595344,117700.0,117690.0,0.00014971]
[1752863975318,1.19035344,117700.0,117690.0,0.00014971]
[1752863975525,1.32995344,117700.0,117690.0,0.00014971]
[1752863976354,1.32295344,117700.0,117690.0,0.00014971]
[1752863977671,1.32895344,117700.0,117690.0,0.00014971]
[1752863978611,1.35447344,117700.0,117690.0,0.00014971]
[1752863980185,1.30447344,117700.0,117690.0,0.00014971]
[1752863980395,1.35447344,117700.0,117690.0,0.00014971]
[1752863981492,1.30447344,117700.0,117690.0,0.00014971]
[1752863981708,1.35447344,117700.0,117690.0,0.00014971]
[1752863983518,0.86937594,117700.0,117690.0,0.00014971]
[1752863983738,1.35447344,117700.0,117690.0,0.00014971]
[1752863984380,0.81937594,117700.0,117690.0,0.00014971]
[1752863984588,1.35447344,117700.0,117690.0,0.00014971]
[1752863984789,1.30447344,117700.0,117690.0,0.00014971]
[1752863984996,1.35447344,117700.0,117690.0,0.00014971]
[1752863986025,1.32034961,117700.0,117690.0,0.00014971]
[1752863986824,1.37034961,117700.0,117690.0,0.00014971]
[1752863987042,1.32034961,117700.0,117690.0,0.00014971]
[1752863987203,1.37034961,117700.0,117690.0,0.00014971]
[1752863987406,1.37034961,117700.0,117690.0,1e-08]
[1752863987856,1.37828786,117700.0,117690.0,1e-08]
[1752863988411,1.37778762,117700.0,117690.0,1e-08]
[1752863988765,1.36984961,117700.0,117690.0,1e-08]
[1752863988963,1.45560923,117700.0,117690.0,1e-08]
[1752863989225,1.36984961,117700.0,117690.0,1e-08]
[1752863989441,1.37778694,117700.0,117690.0,1e-08]
[1752863989623,1.32778694,117700.0,117690.0,1e-08]
[1752863990018,1.36984961,117700.0,117690.0,1e-08]
[1752863990404,1.37778781,117700.0,117690.0,1e-08]
[1752863997590,1.45512103,117700.0,117690.0,1e-08]
[1752863998035,1.60512103,117700.0,117690.0,1e-08]
[1752863998894,1.62344619,117700.0,117690.0,1e-08]
[1752863999108,2.13694757,117700.0,117690.0,1e-08]
[1752863999363,2.15148842,117700.0,117690.0,1e-08]
[1752863999572,2.15745086,117700.0,117690.0,1e-08]
[1752863999774,1.67235336,117700.0,117690.0,1e-08]
[1752864000424,1.15992264,117700.0,117690.0,1e-08]
[1752864000635,1.64502014,117700.0,117690.0,1e-08]
[1752864000856,1.61065382,117700.0,117690.0,1e-08]
[1752864001322,1.50083065,117700.0,117690.0,1e-08]
[1752864001558,1.6203198,117700.0,117690.0,1e-08]
[1752864002656,1.5703198,117700.0,117690.0,1e-08]
[1752864002917,1.60199464,117700.0,117690.0,1e-08]
[1752864003328,1.62033439,117700.0,117690.0,1e-08]
[1752864003763,1.60199464,117700.0,117690.0,1e-08]
[1752864003983,1.62033439,117700.0,117690.0,1e-08]
[1752864004418,1.44431781,117700.0,117690.0,1e-08]
[1752864004634,1.44431781,117700.0,117690.0,0.00316001]
[1752864004851,1.49431781,117700.0,117690.0,0.00316001]
[1752864005062,1.50981781,117700.0,117690.0,1e-08]
[1752864005515,1.45981781,117700.0,117690.0,1e-08]
[1752864006536,1.50981781,117700.0,117690.0,1e-08]
[1752864006826,1.45981781,117700.0,117690.0,1e-08]
[1752864007036,1.44431781,117700.0,117690.0,1e-08]
[1752864007482,0.95922031,117700.0,117690.0,1e-08]
[1752864007709,1.44431781,117700.0,117690.0,1e-08]
[1752864007935,1.30883781,117700.0,117690.0,0.00196001]
[1752864008157,1.30883781,117700.0,117690.0,0.03692001]
[1752864008158,0.33176031,117700.0,117690.0,0.03692001]
[1752864008368,0.44338594,117700.0,117690.0,0.10403129]
[1752864008592,0.78338594,117700.0,117690.0,0.10403129]
[1752864008812,0.79926211,117700.0,117690.0,0.10403129]
[1752864009018,0.79326211,117700.0,117690.0,0.10403129]
[1752864009277,0.78926211,117700.0,117690.0,0.10403129]
[1752864009511,0.79426211,117700.0,117690.0,0.10403129]